Cogmind - Beta 16.1 @@@ ROGUE MODE // 2026.04.03 @ 11:17:32 Player: Dosh Result: Core destroyed Performance ------------- Evolutions (4) 2000 Regions Visited (9) 1800 Robots Destroyed (152) 760 Value Destroyed (6740) 6740 Prototype IDs (19) 380 Alien Tech Used (0) 0 Bonus (4527) 4527 TOTAL SCORE: 16207 Bonus ------- High Alert Combat Kills 486 Follower Combat Kills 1941 Entered Garrisons 600 Used RIF Installer 1500 Cogmind --------- Core Integrity 0/850 Matter 300/300 Energy 100/100 System Corruption 24% Temperature Cool (0) Movement Core (50) Location -6/Factory Parts ------- > --- POWER (1) -------- (None) > --- PROPULSION (3) --- (None) > --- UTILITY (5) ------ (None) > --- WEAPON (6) ------- (None) > --- INVENTORY (5) ---- Hardened Heavy Armor Plating Hardened Heavy Armor Plating Relay Coupler [Sentry] (33) Peak State ------------ > --- POWER ------------ Improved Deuterium Engine > --- PROPULSION ------- Light Treads Improved Medium Treads Compact Wheel > --- UTILITY ---------- Huge Storage Unit IFF Parser Remote Shield Relay Coupler [Grunt] Relay Coupler [Sentry] > --- WEAPON ----------- 1B-0RG's Assimilator Remote Datajack > --- INVENTORY -------- Improved Deuterium Engine Armored Treads Improved Cooling System Compact Matter Pod Compact Matter Pod Compact Matter Pod Hardened Heavy Armor Plating Hardened Heavy Armor Plating Relay Coupler [NC] Relay Coupler [NC] Relay Coupler [Swarmer] Relay Coupler [Swarmer] Relay Coupler [Grunt] Relay Coupler [Grunt] Relay Coupler [Sentry] Relay Coupler [Sentry] Relay Coupler [Specialist] Relay Coupler [Hunter] System Restoration Module Heavy Particle Gun Improved Grenade Launcher Improved Datajack Impact Mace [Rating: 106] Favorites ----------- Power Improved Deuterium Engine Engine Improved Deuterium Engine Power Core Micro Nuclear Core Propulsion Light Treads Treads Light Treads Wheel Compact Wheel Utility Huge Storage Unit Device Hardlight Generator Storage Huge Storage Unit Hackware Relay Coupler [Sentry] Protection Weapon Shielding Weapon Enhanced Autogun Energy Gun Heavy Particle Gun Energy Cannon Powered Cannon Ballistic Gun Enhanced Autogun Launcher Improved Grenade Launcher Special Weapon Remote Datajack Impact Weapon Impact Mace Slashing Weapon Chainsword Special Melee Weapon 1B-0RG's Assimilator Build | -11 -10 -10 -8 -8 -8 -8 -7 -7 -6 ------- Run | Yrd Mat Sub Mat Gar Mat Gar Fac Gar Fac Slots Evolved 8 | . . . 4 . . . 2 . 2 Power . | . . . . . . . . . . Propulsion 1 | . . . . . . . . . 1 Utility 3 | . . . 1 . . . 1 . 1 Weapon 4 | . . . 3 . . . 1 . . Parts Attached 87 | 6 7 2 23 2 5 6 15 12 9 Power 11 | 1 1 . 3 . . 3 2 1 . Engine 9 | 1 1 . 3 . . 3 . 1 . Core 2 | . . . . . . . 2 . . Reactor . | . . . . . . . . . . Propulsion 18 | 2 . . 5 1 3 . 5 . 2 Treads 16 | 2 . . 5 1 3 . 5 . . Leg . | . . . . . . . . . . Wheel 2 | . . . . . . . . . 2 Hover . | . . . . . . . . . . Flight . | . . . . . . . . . . Utility 31 | . 3 1 5 . 1 2 4 9 6 Device 14 | . 1 . 4 . 1 2 3 2 1 Storage 4 | . 1 1 . . . . . 2 . Processor . | . . . . . . . . . . Hackware 9 | . . . . . . . 1 4 4 Protection 4 | . 1 . 1 . . . . 1 1 Artifact . | . . . . . . . . . . Weapon 27 | 3 3 1 10 1 1 1 4 2 1 Energy Gun 4 | . . . 4 . . . . . . Energy Cannon 3 | . . 1 . . . 1 1 . . Ballistic Gun 9 | 3 . . 5 . . . 1 . . Ballistic Cannon . | . . . . . . . . . . Launcher 1 | . . . . . . . 1 . . Special Weapon 4 | . 2 . . . . . 1 . 1 Impact Weapon 1 | . . . . . 1 . . . . Slashing Weapon 2 | . . . . 1 . . . 1 . Piercing Weapon . | . . . . . . . . . . Special Melee Weapon 3 | . 1 . 1 . . . . 1 . Unidentified Prototypes 6 | . . . 3 . 1 . 1 1 . Parts Lost 48 | . . 3 . . 1 6 5 4 29 Power 7 | . . . . . . 1 2 1 3 Propulsion 10 | . . 1 . . 1 . 2 1 5 Utility 18 | . . . . . . 1 . 1 16 Weapon 13 | . . 2 . . . 4 1 1 5 Highest Loss Streak 28 | . . 2 . . 1 2 2 2 28 To Critical Strikes . | . . . . . . . . . . Average Backups 16 | . 4 7 17 19 18 19 19 22 22 Power 1 | . 1 1 2 2 2 . . . 1 Propulsion 2 | . . . 3 4 3 4 4 2 . Utility 6 | . . 1 3 6 5 6 8 14 15 Weapon 4 | . 2 3 5 5 5 5 4 3 2 Tool/Special . | . . . . . . . . . . Unused Backups 18 | . . . 6 . 2 1 . 8 1 Power 3 | . . . 3 . . . . . . Propulsion 3 | . . . 1 . 2 . . . . Utility 11 | . . . 1 . . 1 . 8 1 Weapon 1 | . . . 1 . . . . . . Tool/Special . | . . . . . . . . . . Average Slot Usage (%) 87 | . 97 90 96 99 99 88 75 64 65 Engine 8 | . 14 14 8 9 9 11 8 . 5 Core 1 | . . . . . . . 5 6 . Treads 17 | . 28 19 17 18 18 16 13 14 9 Device 13 | . 12 14 16 18 18 16 18 4 2 Storage 7 | . 5 14 9 9 9 8 7 7 5 Hackware 2 | . . . . . . . . 13 17 Protection 1 | . 8 . . . . . . . . Energy Gun 2 | . . . 7 . . 2 4 . . Energy Cannon 1 | . . 10 . . . 5 7 . . Ballistic Gun 22 | . 20 17 34 41 44 25 4 . . Special Weapon 2 | . 6 . . . . . 5 1 3 Special Melee Weapon 1 | . . . . . . . . 6 5 Peak Build Rating 106 | 5 7 15 46 49 53 60 62 99 106 Average Rating 49 | 3 6 10 41 46 49 53 56 90 96 On Entrance 38 | . 5 7 15 45 49 51 56 55 99 Avg Prop Armor Cover (%) 11 | . . . . . . . . . 11 Naked Turns 39 | . . . . . . . . . 39 Heaviest Build 168 | 9 20 95 112 112 112 124 123 150 168 Greatest Support 50 | 40 40 40 40 50 50 40 42 50 26 Greatest Overweight (x) 10 | . . 4 4 2 2 5 3 3 10 Average Overweight (x) 2 | . . 1 2 2 2 2 2 2 7 Largest Inventory Capacity 25 | 5 10 25 25 25 25 25 25 25 25 Average Capacity 21 | 5 6 15 25 25 25 25 25 25 24 Most Carried 25 | 1 8 13 25 25 25 25 25 25 25 Average Carried 20 | . 4 9 23 24 24 24 24 23 23 Final Capacity 25 | 5 10 25 25 25 25 25 25 25 5 Final Carried 25 | 1 7 13 25 25 25 25 25 25 5 Class Distribution -------------------- 40% | Tank 20% | Mutant 18% | Bothacker-Mutant 10% | Bothacker-Tank 5% | Bothacker-Executioner 4% | Gunner Dominant Class ---------------- Mutant | -10/Materials Mutant | -10/Subcaves Tank | -8/Materials Tank | -8/Garrison Tank | -8/Materials Tank | -8/Garrison Bothacker-Tank | -7/Factory Bothacker-Mutant | -7/Garrison Bothacker-Mutant | -6/Factory Resources | -11 -10 -10 -8 -8 -8 -8 -7 -7 -6 ----------- Run | Yrd Mat Sub Mat Gar Mat Gar Fac Gar Fac Matter Collected 8288 | 260 422 79 1508 608 965 865 425 2085 1071 Remotely . | . . . . . . . . . . Salvage Created 6514 | . 561 60 1671 708 743 1206 1090 267 208 Parts 355 | . 41 1 85 42 48 77 42 13 6 Haulers Intercepted 12 | . 2 . 4 . 5 . 1 . . Recyclers Shooed 2 | . 1 . . . . . 1 . . Parts Field Recycled . | . . . . . . . . . . Retrieved Matter . | . . . . . . . . . . Parts Self-Destructed . | . . . . . . . . . . Prevented . | . . . . . . . . . . Parts Restored . | . . . . . . . . . . Kills | -11 -10 -10 -8 -8 -8 -8 -7 -7 -6 ------- Run | Yrd Mat Sub Mat Gar Mat Gar Fac Gar Fac Combat Hostiles Destroyed 116 | . 15 1 23 15 9 28 18 3 4 Melee 6 | . . . . . . 3 . 1 2 Guns 84 | . 15 1 23 15 9 19 . . 2 Cannons 19 | . . . . . . 5 13 1 . AOE 2 | . . . . . . . 2 . . Classes Destroyed 18 | . 6 1 4 4 1 1 . 1 . Worker 4 | . 1 . 1 . . . 1 . 1 Builder 1 | . . . 1 . . . . . . Hauler 12 | . 2 . 4 . 5 . 1 . . Recycler 6 | . . . 4 . . . 2 . . Mechanic 1 | . . . . . . . . 1 . Operator 3 | . 1 . 2 . . . . . . Watcher 7 | . 2 . 1 . 3 . 1 . . Swarmer 25 | . 9 . 3 . 2 4 4 1 2 Cutter 2 | . . . . 2 . . . . . Grunt 52 | . 6 . 14 8 2 15 4 2 1 Brawler 2 | . . . . 1 . 1 . . . Duelist 4 | . . . . 2 1 1 . . . Sentry 18 | . . . 5 1 3 3 5 1 . Specialist 1 | . . . . 1 . . . . . Hunter 4 | . . . . . 1 . 1 1 1 Programmer 8 | . . . . . . 4 4 . . Heavy 1 | . . . 1 . . . . . . Subdweller 1 | . . 1 . . . . . . . Best Kill Streak 15 | . 3 1 3 4 3 15 4 1 1 Combat Bots Only 15 | . 3 1 3 4 2 15 4 1 1 Max Kills in Single Turn 3 | . 2 1 2 1 1 2 3 1 1 Gunslinging 1 | . . . 1 . . 1 . . . Exploded 2 | . . . . . . . 2 . . Melee 1 | . . . . . . 1 . 1 1 Uniques/NPCs Destroyed . | . . . . . . . . . . Combat | -11 -10 -10 -8 -8 -8 -8 -7 -7 -6 -------- Run | Yrd Mat Sub Mat Gar Mat Gar Fac Gar Fac Hostile Shots Fired 723 | . 67 8 60 38 26 119 174 130 101 Missed 214 | . 29 1 20 11 3 22 59 42 27 Hits 509 | . 38 7 40 27 23 97 115 88 74 Melee 5 | . . . . 3 1 1 . . . Projectile 504 | . 38 7 40 24 22 96 115 88 74 AOE 4 | . . . . 2 . . . 1 1 Critical Strikes 20 | . 1 . 1 4 1 7 3 2 1 Damage Taken 6799 | . 369 247 626 428 248 1228 829 1202 1622 Core 1540 | . 51 48 135 83 26 49 84 187 877 Absorbed by Shields 1005 | . . . 112 56 88 248 340 63 98 Redirected to Shielding 21 | . 21 . . . . . . . . Ignored by Resistances 10 | . . . 10 . . . . . . Regen/Repaired (Parts) 878 | . . . . . 253 . . 369 256 Core Remaining (%) 66 | 100 . 60 . . . 46 . 61 . Volleys Fired 439 | . 93 12 63 29 36 63 103 13 27 Largest 5 | . 2 2 5 5 5 5 2 1 1 Hottest 245 | . 200 120 245 125 125 145 120 40 55 Shots Fired 1188 | . 186 24 282 138 178 236 105 12 27 Gun 951 | . 126 18 271 138 178 213 . . 7 Cannon 143 | . . 5 11 . . 23 99 5 . Launcher 2 | . . . . . . . 2 . . Special 92 | . 60 1 . . . . 4 7 20 Kinetic 903 | . 126 18 247 138 178 196 . . . Thermal 252 | . 60 6 35 . . 40 99 5 7 Explosive 2 | . . . . . . . 2 . . Electromagnetic . | . . . . . . . . . . Robot Hit Streak 25 | . 6 5 25 12 12 12 10 4 9 Robot Miss Streak 6 | . 5 3 3 5 6 4 5 1 2 Penetration Max . | . . . . . . . . . . Secondary Targets 22 | . 2 . 7 4 1 8 . . . Max Gunslinging Chain 2 | . 1 . 2 1 1 1 . . . Shots Hit Robots 610 | . 63 9 157 75 97 116 55 15 23 Core Hits 239 | . 31 2 61 30 29 46 22 5 13 Critical Kills 6 | . 1 . 1 . . 1 3 . . Critical Parts Destroyed 2 | . 1 . 1 . . . . . . Critical Strikes 8 | . 2 . 2 . . 1 3 . . Meltdown 4 | . . . . . . 1 3 . . Destroy 4 | . 2 . 2 . . . . . . Melee Attacks 38 | . . . . 8 1 . . 29 . Impact 12 | . . . . . 1 . . 11 . Slashing 26 | . . . . 8 . . . 18 . Piercing . | . . . . . . . . . . Sneak Attacks 4 | . . . . . . . . 4 . Combat Hostiles . | . . . . . . . . . . Follow-up Attacks . | . . . . . . . . . . Damage Inflicted 13701 | . 920 123 2983 1316 1603 2534 3134 593 495 Guns 8588 | . 887 123 2676 1316 1597 1891 . . 98 Cannons 3831 | . . . 192 . . 601 2872 166 . Explosions 142 | . . . . . . . 142 . . Melee 427 | . . . . . . . . 427 . Ramming 713 | . 33 . 115 . 6 42 120 . 397 Kinetic 8098 | . 887 123 2434 1316 1597 1741 . . . Thermal 4321 | . . . 434 . . 751 2872 166 98 Explosive 142 | . . . . . . . 142 . . Electromagnetic . | . . . . . . . . . . Impact 45 | . . . . . . . . 45 . Slashing 382 | . . . . . . . . 382 . Piercing . | . . . . . . . . . . Highest Corruption 24 | . . . . . 1 1 7 10 24 Average Corruption 4 | . . . . . 1 1 5 7 3 Corruption Purged 1 | . . . . . 1 . . . . Corruption Blocked . | . . . . . . . . . . Effects 159 | . . . . . 2 18 51 81 7 Message Errors 45 | . . . . . . 8 14 20 3 Matter Fused 37 | . . . . . 2 2 13 19 1 Heat Flow Errors 23 | . . . . . . 1 8 13 1 Energy Discharges 18 | . . . . . . 3 2 13 . Parts Fused 2 | . . . . . . . . 2 . Data Loss (minor) 20 | . . . . . . 3 8 8 1 Data Loss (major) 7 | . . . . . . 1 3 2 1 Misfires 1 | . . . . . . . 1 . . Alerts 4 | . . . . . . . 1 3 . Weapon Failures 2 | . . . . . . . 1 1 . Overload Shots 3 | . . . . . . . 3 . . Overflow Damage 481 | . . . 9 . . 48 347 75 2 Projectiles 387 | . . . . . . 48 339 . . Explosions . | . . . . . . . . . . Melee 94 | . . . 9 . . . 8 75 2 Knockbacks 2 | . . . . . . . 1 . 1 Impact 2 | . . . . . . . 1 . 1 Kinetic . | . . . . . . . . . . Secondary . | . . . . . . . . . . Self-Inflicted Damage 250 | . . . . . . . . . 250 Shots . | . . . . . . . . . . Rammed 97 | . 13 . 7 . 2 2 10 1 62 Targets Rammed 102 | . 13 . 8 . 2 5 11 1 62 Kicked . | . . . . . . . . . . Crushed 5 | . . . 1 . . 3 1 . . Highest Temperature 542 | . 224 40 408 308 283 542 164 256 123 Average Temperature 95 | . 53 19 115 116 89 151 43 92 67 Received Heat Transfer 1603 | . 123 . 212 177 68 487 171 295 70 Effects 13 | . . . 1 3 . 9 . . . Shutdowns 2 | . . . 1 . . 1 . . . Energy Bleed 2 | . . . . 1 . 1 . . . Interference 6 | . . . . 2 . 4 . . . Matter Decay 1 | . . . . . . 1 . . . Short Circuit 1 | . . . . . . 1 . . . Damage (minor) 1 | . . . . . . 1 . . . Siege Activations . | . . . . . . . . . . Martial Activations . | . . . . . . . . . . Shielding Activations . | . . . . . . . . . . Robots Disrupted . | . . . . . . . . . . Combat Hostiles . | . . . . . . . . . . Robots Corrupted 2 | . . . . . . . 1 1 . Combat Hostiles 1 | . . . . . . . . 1 . Parts Fried 3 | . . . . . . . 1 1 1 Impact Corruptions 4 | . . . 1 . . . 1 1 1 Robots Melted 4 | . . . . . . 1 3 . . Combat Hostiles 4 | . . . . . . 1 3 . . Parts Melted 17 | . . . 3 . . 2 8 . 4 Heat Transferred 1221 | . . . 740 . . 296 . . 185 Parts Sabotaged . | . . . . . . . . . . Parts Stolen . | . . . . . . . . . . Parts Stripped . | . . . . . . . . . . Power Chain Reactions . | . . . . . . . . . . Alert | -11 -10 -10 -8 -8 -8 -8 -7 -7 -6 ------- Run | Yrd Mat Sub Mat Gar Mat Gar Fac Gar Fac Maximum Alert Level 5 | . . . 2 3 2 3 2 5 4 Low Security (%) 51 | 100 100 . 71 . 92 13 67 1 . Level 1 17 | . . . 24 62 4 6 18 28 . Level 2 13 | . . . 3 26 3 42 13 12 40 Level 3 10 | . . . . 11 . 37 . 24 31 Level 4 5 | . . . . . . . . 22 27 Level 5 1 | . . . . . . . . 10 . High Security . | . . . . . . . . . . Max Security . | . . . . . . . . . . Peak Influence 1961 | . 148 . 414 890 433 1062 557 1961 1158 Initial 1029 | . . . . 265 433 18 557 186 1029 Average 325 | . 42 . 96 458 69 598 158 837 852 Influence Increases 7256 | . 592 . 751 625 317 1144 636 1935 1256 Destroy 0b10 Robot/C 3600 | . 300 . 460 300 180 660 360 720 620 Destroy 0b10 Robot/NC 210 | . 30 . 65 . 40 . 25 . 50 Destroy Leader 668 | . 68 . 130 20 76 50 134 40 150 Allied During Kill 582 | . . . . . . 11 . 283 288 Successful Hack 104 | . 34 . 16 . 19 21 . . 14 Select Force Hacks 30 | . 30 . . . . . . . . Disable Machine 240 | . 15 . 75 . . . 60 15 75 Anti-Garrison Action 1400 | . . . . 250 . 350 . 800 . Destroy Structure 227 | . 40 . 5 40 2 37 42 47 14 Partial Spotted 15 | . . . . . . . 15 . . Lose Combat Pursuer 180 | . 75 . . 15 . 15 . 30 45 Influence Decreases 6366 | . 516 76 343 143 1179 110 1431 241 2327 Entered New Map 2165 | . . 37 . 143 457 10 505 81 932 Time Decay 2314 | . 516 39 245 . 503 . 501 . 510 Lost Part 449 | . . . . . 9 60 50 40 290 Lost Ally 440 | . . . . . 60 40 . 120 220 Purge Threat 998 | . . . 98 . 150 . 375 . 375 Squads Dispatched 32 | . 2 . 6 . 2 . 10 . 12 Investigation 5 | . 1 . 3 . . . 1 . . Extermination 6 | . . . . . . . 4 . 2 Reinforcement 16 | . 1 . 3 . 1 . 5 . 6 Assault 1 | . . . . . . . . . 1 Garrison 4 | . . . . . 1 . . . 3 Intercept . | . . . . . . . . . . Searches Triggered . | . . . . . . . . . . Construction Impeded 1 | . . . . . . . . . 1 Haulers Reinforced 2 | . . . . . . . 2 . . Active Scanning Responses . | . . . . . . . . . . Cargo Convoy Interrupts 1 | . . . . . . . . . 1 Stealth | -11 -10 -10 -8 -8 -8 -8 -7 -7 -6 --------- Run | Yrd Mat Sub Mat Gar Mat Gar Fac Gar Fac Distress Signals 17 | . 2 . 8 . 3 . 1 . 3 Communications Jammed 15 | . . . . . . . . . 15 Distress Signals 14 | . . . . . . . . . 14 Times Spotted 255 | . 33 1 28 15 20 34 28 47 49 Peak Tracking Total 11 | . 3 1 4 4 3 8 4 7 11 Tactical Retreats 9 | . 3 . . 1 . 1 . 2 2 Traps | -11 -10 -10 -8 -8 -8 -8 -7 -7 -6 ------- Run | Yrd Mat Sub Mat Gar Mat Gar Fac Gar Fac Traps Triggered 26 | . . 3 1 7 1 7 1 6 . Indirectly . | . . . . . . . . . . Trap Hack Attempts 14 | . 9 . 5 . . . . . . Triggered . | . . . . . . . . . . Disarmed 2 | . . . 2 . . . . . . Reprogrammed 1 | . 1 . . . . . . . . Reused . | . . . . . . . . . . Traps Extracted . | . . . . . . . . . . Installed . | . . . . . . . . . . Triggered . | . . . . . . . . . . Machines | -11 -10 -10 -8 -8 -8 -8 -7 -7 -6 ---------- Run | Yrd Mat Sub Mat Gar Mat Gar Fac Gar Fac Machines Disabled 25 | . 1 1 5 1 . 3 4 5 5 Max in Single Turn 1 | . 1 1 1 1 . 1 1 1 . Garrison Relay 8 | . . . . 1 . 3 . 4 . Machines Repaired . | . . . . . . . . . . Machines Dismantled . | . . . . . . . . . . Machines Sabotaged . | . . . . . . . . . . Overloaded Fab Kills . | . . . . . . . . . . Hacking | -11 -10 -10 -8 -8 -8 -8 -7 -7 -6 --------- Run | Yrd Mat Sub Mat Gar Mat Gar Fac Gar Fac Machines Accessed 47 | . 8 1 10 3 9 4 6 3 3 Terminals 36 | . 6 . 8 3 5 4 4 3 3 Fabricators . | . . . . . . . . . . Repair Stations 4 | . 1 . . . 2 . 1 . . Recycling Units 1 | . 1 . . . . . . . . Scanalyzers 2 | . . . 1 . 1 . . . . Garrison Access 3 | . . . 1 . 1 . 1 . . Total Hacks 111 | . 21 1 25 6 24 8 14 7 5 Successful 48 | . 10 1 16 2 11 2 5 . 1 Failed 61 | . 10 . 9 4 12 6 9 7 4 Catastrophic 17 | . 2 . 3 1 3 1 4 1 2 Database Lockouts 2 | . 1 . . . 1 . . . . Manual 53 | . 14 . 14 2 11 1 8 . 3 Terminals 88 | . 18 . 20 6 14 8 10 7 5 Fabricators . | . . . . . . . . . . Repair Stations 8 | . 1 . . . 6 . 1 . . Recycling Units 2 | . 2 . . . . . . . . Scanalyzers 6 | . . . 4 . 2 . . . . Garrison Access 6 | . . . 1 . 2 . 3 . . Terminal Hacks 20 | . 4 1 5 2 4 2 2 . . Robot Schematic 1 | . . . . . 1 . . . . Robot Analysis 2 | . 2 . . . . . . . . Open Door 1 | . . . . . . 1 . . . Branch Access Points 1 | . . . . . 1 . . . . Emergency Access Points 1 | . . . . 1 . . . . . Terminal Index 1 | . 1 . . . . . . . . Alert Level 1 | . . . 1 . . . . . . Unreport Threat 4 | . . . 2 . 1 . 1 . . Locate Traps 3 | . 1 . 2 . . . . . . Recall Reinforcements 2 | . . . . . 1 . 1 . . Patrol Navigation 2 | . . . . 1 . 1 . . . Proto ID Catalog 1 | . . 1 . . . . . . . Fabricator Hacks . | . . . . . . . . . . Repair Station Hacks 4 | . . . . . 4 . . . . Scan Component 2 | . . . . . 2 . . . . Repair 2 | . . . . . 2 . . . . Recycling Unit Hacks . | . . . . . . . . . . Scanalyzer 5 | . . . 4 . 1 . . . . Retrieve Study 5 | . . . 4 . 1 . . . . Garrison Access Hacks 5 | . . . 1 . 2 . 2 . . Unlock Access 3 | . . . 1 . 1 . 1 . . Coupler Status 2 | . . . . . 1 . 1 . . Unauthorized Hacks 14 | . 6 . 6 . . . 1 . 1 Terminals 13 | . 5 . 6 . . . 1 . 1 Botnet 3 | . . . 1 . . . 1 . 1 Skim 10 | . 5 . 5 . . . . . . Fabricators . | . . . . . . . . . . Repair Stations . | . . . . . . . . . . Recycling Units 1 | . 1 . . . . . . . . Tunnel 1 | . 1 . . . . . . . . Scanalyzers . | . . . . . . . . . . Garrison Access . | . . . . . . . . . . Data Cores Recovered . | . . . . . . . . . . Used . | . . . . . . . . . . Hacking Detections 40 | . 7 . 7 2 9 3 6 3 3 Full Trace Events 5 | . . . . . . 2 1 2 . Feedback Events . | . . . . . . . . . . Feedback Blocked . | . . . . . . . . . . Robot Schematics Acquired 1 | . . . . . 1 . . . . Robots Built . | . . . . . . . . . . Authchips . | . . . . . . . . . . Time . | . . . . . . . . . . Total Robot Build Rating . | . . . . . . . . . . Part Schematics Acquired . | . . . . . . . . . . Parts Built . | . . . . . . . . . . Authchips . | . . . . . . . . . . Time . | . . . . . . . . . . Total Part Build Rating . | . . . . . . . . . . Part Studies Acquired 5 | . . . 4 . 1 . . . . Parts Repaired 2 | . . . . . 2 . . . . Time 120 | . . . . . 120 . . . . Parts Recycled . | . . . . . . . . . . Recycled Matter . | . . . . . . . . . . Retrieved Matter . | . . . . . . . . . . Retrieved Components . | . . . . . . . . . . Parts Scanalyzed . | . . . . . . . . . . Part Schematics Acquired . | . . . . . . . . . . Parts Damaged . | . . . . . . . . . . Bothacking | -11 -10 -10 -8 -8 -8 -8 -7 -7 -6 ------------ Run | Yrd Mat Sub Mat Gar Mat Gar Fac Gar Fac Used RIF Installer 3 | . . . . 1 . 1 . 1 . Coupler Efficiency 1 | . . . . . . . . 1 . Signal Jammer 1 | . . . . . . 1 . . . Robots Hacked 17 | . . . . . . . 1 4 12 Non-combat 5 | . . . . . . . 1 . 4 Combat 12 | . . . . . . . . 4 8 Robot Hacks Applied 23 | . . . . . . . 3 4 16 drop_inventory 2 | . . . . . . . . . 2 purge_threat 5 | . . . . . . . 2 . 3 overload_power 2 | . . . . . . . . . 2 amplify_resonance 5 | . . . . . . . . 3 2 overwrite_iff 3 | . . . . . . . . 1 2 formatsys_low 2 | . . . . . . . 1 . 1 formatsys_high 4 | . . . . . . . . . 4 Relay Couplers Released 34 | . . . . 3 . 14 . 17 . Machine Destruction 30 | . . . . 3 . 10 . 17 . Programmers 4 | . . . . . . 4 . . . Attached 9 | . . . . . . . 1 4 4 Fabnet Peak Effective % . | . . . . . . . . . . Robots Rewired 6 | . . . . 3 . . . 3 . Allies Hacked 6 | . . . . . . 1 . 1 4 Hacks Repelled 1 | . . . . . . . . . 1 Allies | -11 -10 -10 -8 -8 -8 -8 -7 -7 -6 -------- Run | Yrd Mat Sub Mat Gar Mat Gar Fac Gar Fac Total Allies 18 | . . . . 3 . 2 1 4 8 Largest Group 5 | . . . . 3 3 2 1 3 5 Highest-Rated Group 202 | . . . . 15 15 78 26 96 202 Highest-Rated Ally 56 | . . . . 5 5 39 26 32 56 Total Orders 2 | . . . . . . . . 1 1 AID 2 | . . . . . . . . 1 1 Ally Attacks 467 | . . . . . 8 44 . 135 280 Total Damage 9202 | . . . . . 55 309 . 3176 5662 Kills 75 | . . . . . . 5 . 34 36 Allies Corrupted . | . . . . . . . . . . Allies Melted 1 | . . . . . . . . . 1 Borg Created 13 | . . . . . . . . 11 2 Largest Collective 6 | . . . . . . . . 6 5 Intel | -11 -10 -10 -8 -8 -8 -8 -7 -7 -6 ------- Run | Yrd Mat Sub Mat Gar Mat Gar Fac Gar Fac Active Infowar (turns) 4919 | . 2631 561 1140 . . . . 24 563 IFF 587 | . . . . . . . . 24 563 Seismic 4332 | . 2631 561 1140 . . . . . . Robot Analysis Total 2 | . 2 . . . . . . . . Derelict Logs Recovered 1 | . . 1 . . . . . . . Drone Launches . | . . . . . . . . . . Drone Recoveries . | . . . . . . . . . . Exploration | -11 -10 -10 -8 -8 -8 -8 -7 -7 -6 ------------- Run | Yrd Mat Sub Mat Gar Mat Gar Fac Gar Fac Turns Passed 19146 | 55 3034 561 3687 1807 2286 1683 2219 2419 1395 Spaces Moved 7169 | 31 1608 208 1290 638 695 562 744 789 604 Core 4 | 2 . . . . . . . . 2 Treads 6563 | 29 1608 208 1290 638 695 562 744 789 . Legs . | . . . . . . . . . . Wheels 602 | . . . . . . . . . 602 Hover . | . . . . . . . . . . Flight . | . . . . . . . . . . Fastest Speed 50 | 50 160 160 240 240 250 250 240 272 50 Average Speed 237 | 152 160 247 264 261 283 265 261 279 196 Slowest Speed 480 | 160 160 480 480 280 325 370 290 280 240 Overloaded Moves . | . . . . . . . . . . Propulsion Burnouts . | . . . . . . . . . . Robots Hopped . | . . . . . . . . . . Potential Cave-ins . | . . . . . . . . . . Cave-ins Triggered . | . . . . . . . . . . Exploration Rate (%) 56 | 3 99 16 99 79 58 74 33 82 21 Regions Visited 9 Branch Regions 1 Pre-discovered Areas 3 | . 1 1 1 . . . . . . Known Exits Taken 3 | . . . 1 . 1 . 1 . . Unknown Exits Taken 3 | 1 1 1 . . . . . . . Scrap Searched 4 | . . 4 . . . . . . . Spaces Dug 56 | . 45 . . . 1 1 3 6 . Terrain Destroyed 134 | . 52 . 2 . 1 7 64 7 1 Melee 7 | . . . . . 1 . . 6 . Projectile 98 | . 52 . 2 . . 7 36 1 . AOE 28 | . . . . . . . 28 . . Terrain Rammed 14 | . . . . . . . . . 14 Walls Destroyed 1 | . . . . . . . . . 1 Machines Disabled . | . . . . . . . . . . Actions | -11 -10 -10 -8 -8 -8 -8 -7 -7 -6 --------- Run | Yrd Mat Sub Mat Gar Mat Gar Fac Gar Fac Total 8532 | 36 1754 227 1486 742 982 673 940 939 753 Wait 399 | . 11 . 55 5 227 15 51 11 24 Move 7163 | 30 1607 207 1290 637 695 561 744 788 604 Hop . | . . . . . . . . . . Pick Up 75 | . 7 3 21 1 5 7 3 25 3 Fast Attach 32 | 5 2 . 7 2 3 3 5 2 3 Attach 26 | . 3 2 . . 1 3 5 9 3 Detach 11 | . 2 . 2 . 1 . 1 4 1 Swap 65 | 1 5 3 17 5 6 3 6 11 8 Drop 58 | . 2 . 18 2 5 3 8 18 2 Fire 439 | . 93 12 63 29 36 63 103 13 27 Melee 38 | . . . . 8 1 . . 29 . Ram 75 | . . . . . . . . . 75 Kick . | . . . . . . . . . . Crush 40 | . 13 . 8 . 2 5 11 1 . Escape Stasis 34 | . . . . 12 . 10 2 10 . Rewire 50 | . . . . 41 . . 1 7 1 Trap 14 | . 9 . 5 . . . . . . Miscellaneous 13 | . . . . . . . . 11 2 Route ------- -11/Scrapyard -10/Materials (discovered 5 exits: [*Mat x3] / [*Min] / *Sub) -10/Subcaves -8/Materials (discovered 5 exits: *Fac x3 / *Sto / Gar) -8/Garrison (discovered 4 exits: *Mat x4) -8/Materials (discovered 6 exits: *Fac x3 / *Sto x2 / Gar) -8/Garrison (discovered 3 exits: *Fac x3) -7/Factory (discovered 5 exits: *Fac x4 / Gar) -7/Garrison (discovered 3 exits: *Fac x3) -6/Factory (discovered 2 exits: [*Fac] / [*Low]) History --------- Turn | Location | Event 28 | -11/Scrapyard | Discovered new exit (range 15) 56 | -11/Scrapyard | Entered Materials 74 | -10/Materials | Discovered new exit (range 15) 301 | -10/Materials | Build established: Mutant 426 | -10/Materials | Central database locked down 678 | -10/Materials | Discovered new exit (range 5) 864 | -10/Materials | Learned Storage garrison access intel 897 | -10/Materials | Learned 2 Storage zone layouts 921 | -10/Materials | Learned location of 1 exit from Storage 936 | -10/Materials | Learned Storage emergency access door positions 940 | -10/Materials | Learned 2 Mines zone layouts 956 | -10/Materials | Loaded intel: 21 trap records 982 | -10/Materials | Learned Storage stockpile data 1010 | -10/Materials | Discovered new exit (range 3) 1075 | -10/Materials | Discovered new exit (range 15) 3077 | -10/Materials | Discovered new exit (range 7) 3090 | -10/Materials | Entered Subcaves 3127 | -10/Subcaves | Learned location of Zion (-7) 3171 | -10/Subcaves | Disturbed a concealed Subdweller 3374 | -10/Subcaves | Discovered new exit (range 10) 3407 | -10/Subcaves | Visited 4L-MR0's lab 3431 | -10/Subcaves | Found Powered Cannon 3438 | -10/Subcaves | Found Prototype Special Melee Weapon 3651 | -10/Subcaves | Entered Materials 3651 | -8/Materials | Evolved 4 slots: Utility x1, Weapon x3 4132 | -8/Materials | Met 7R-MNS 4196 | -8/Materials | Build established: Gunner 4600 | -8/Materials | Discovered new exit (range 6) 4879 | -8/Materials | Discovered new exit (range 11) 5097 | -8/Materials | Build established: Tank 5857 | -8/Materials | Discovered new exit (range 10) 6414 | -8/Materials | Learned location of 2 exits from Factory 6484 | -8/Materials | Learned Factory trap positions 6542 | -8/Materials | Learned Factory trap positions 6590 | -8/Materials | Learned location of 1 exit from Extension 6652 | -8/Materials | Identified exit to Factory 7338 | -8/Materials | Identified exit to Garrison 7338 | -8/Materials | Entered Garrison 7466 | -8/Garrison | Triggered checkpoint 7636 | -8/Garrison | Discovered new exit (range 10) 7802 | -8/Garrison | Triggered checkpoint 8460 | -8/Garrison | Triggered checkpoint 8513 | -8/Garrison | Installed Relay Interface Framework 8574 | -8/Garrison | Garrison Relay disabled 8612 | -8/Garrison | Discovered new exit (range 10) 8738 | -8/Garrison | Triggered checkpoint 8920 | -8/Garrison | Discovered new exit (range 10) 8958 | -8/Garrison | Triggered checkpoint 9048 | -8/Garrison | Triggered checkpoint 9088 | -8/Garrison | Discovered new exit (range 5) 9145 | -8/Garrison | Entered Materials 9145 | -8/Materials | Accompanied by 3 allies 9582 | -8/Materials | Lost 3 allies 10206 | -8/Materials | Discovered new exit (range 10) 10344 | -8/Materials | Garrison activated, responded to threat 10430 | -8/Materials | Identified exit to Storage 10603 | -8/Materials | Central database locked down 11099 | -8/Materials | Repaired Enh. Autogun 11184 | -8/Materials | Discovered exit to Factory (range 14) 11190 | -8/Materials | Repaired Enh. Autogun 11431 | -8/Materials | Identified exit to Garrison 11431 | -8/Materials | Entered Garrison 11493 | -8/Garrison | Triggered checkpoint 11521 | -8/Garrison | Garrison Relay disabled 11631 | -8/Garrison | Triggered checkpoint 11690 | -8/Garrison | Core integrity fell below 50% 11736 | -8/Garrison | Destroyed 15 combat bots 11801 | -8/Garrison | Triggered checkpoint 11875 | -8/Garrison | Rescued a captive Derelict 11875 | -8/Garrison | Rescued a captive Derelict 11947 | -8/Garrison | Triggered checkpoint 12015 | -8/Garrison | Expanded RIF knowledge: Signal Jamming 12035 | -8/Garrison | Garrison Relay disabled 12038 | -8/Garrison | Attached Powered Cannon, gained temporary slot: Power 12147 | -8/Garrison | Discovered exit to Factory (range 12) 12413 | -8/Garrison | Triggered checkpoint 12474 | -8/Garrison | Garrison Relay disabled 12552 | -8/Garrison | Discovered exit to Factory (range 15) 12777 | -8/Garrison | Build established: Bothacker-Tank 12923 | -8/Garrison | Triggered checkpoint 13084 | -8/Garrison | Discovered exit to Factory (range 13) 13114 | -8/Garrison | Entered Factory 13114 | -7/Factory | Evolved 2 slots: Utility x1, Weapon x1 13115 | -7/Factory | Identified exit to Factory 13116 | -7/Factory | Loaded intel: 116 trap records 13719 | -7/Factory | Build established: Bothacker-Executioner 13725 | -7/Factory | Discovered exit to Factory (range 6) 14221 | -7/Factory | Discovered exit to Factory (range 16) 14679 | -7/Factory | Build established: Bothacker-Tank 15333 | -7/Factory | Identified exit to Garrison 15333 | -7/Factory | Entered Garrison 15373 | -7/Garrison | Triggered checkpoint 15430 | -7/Garrison | Triggered checkpoint 15484 | -7/Garrison | Garrison Relay disabled 15555 | -7/Garrison | Identified 1B-0RG's Assimilator 15557 | -7/Garrison | Assimilating Guardian 4a into Collective. 15575 | -7/Garrison | Assimilating Guardian 4c into Collective. 15752 | -7/Garrison | Build established: Bothacker-Mutant 16045 | -7/Garrison | Triggered checkpoint 16107 | -7/Garrison | Triggered checkpoint 16114 | -7/Garrison | Assimilating Guardian 4f into Collective. 16135 | -7/Garrison | Garrison Relay disabled 16243 | -7/Garrison | Triggered checkpoint 16249 | -7/Garrison | Assimilating Trooper 4a into Collective. 16252 | -7/Garrison | Assimilating Trooper 4b into Collective. 16349 | -7/Garrison | Triggered checkpoint 16372 | -7/Garrison | Assimilating Trooper 4c into Collective. 16412 | -7/Garrison | Garrison Relay disabled 16559 | -7/Garrison | Discovered exit to Factory (range 15) 16623 | -7/Garrison | Assimilating Guardian 4g into Collective. 16641 | -7/Garrison | Assimilating Smith 4a into Collective. 16646 | -7/Garrison | Lost 4 allies 16823 | -7/Garrison | Triggered checkpoint 16933 | -7/Garrison | Assimilating Trooper 4d into Collective. 16962 | -7/Garrison | Garrison Relay disabled 17013 | -7/Garrison | Discovered exit to Factory (range 9) 17243 | -7/Garrison | Expanded RIF knowledge: Coupler Efficiency 17303 | -7/Garrison | Assimilating Hacker 4a into Collective. 17311 | -7/Garrison | Assimilating Hacker 4b into Collective. 17314 | -7/Garrison | System corruption reached 10% 17471 | -7/Garrison | Discovered exit to Factory (range 13) 17752 | -7/Garrison | Entered Factory 17752 | -6/Factory | Accompanied by 5 allies 17752 | -6/Factory | Evolved 2 slots: Propulsion x1, Utility x1 17753 | -6/Factory | Loaded intel: 101 trap records 18102 | -6/Factory | First assault squad dispatched 18123 | -6/Factory | Assimilating Smith 5a into Collective. 18510 | -6/Factory | Assimilating Hacker 5a into Collective. 18523 | -6/Factory | Cargo convoy interrupted 18548 | -6/Factory | Discovered new exit (range 13) 18587 | -6/Factory | Discovered new exit (range 31) 19095 | -6/Factory | Core integrity fell below 50% 19103 | -6/Factory | System corruption reached 10% 19135 | -6/Factory | Core integrity fell below 20% 19139 | -6/Factory | Lost 28 parts (3p4n16u5w) 19147 | -6/Factory | Core destroyed Last Messages --------------- 19121_ K-01 Serf collects debris. 19122_ Slammed into S-27 Virus. 19126_ K-01 Serf collects debris. 19126_ Slammed into S-27 Virus. 19134_ K-01 Serf collects debris. 19135_ Slammed into S-27 Virus. 19137_ S-27 Virus destroyed. 19139_ Slammed into Wall. 19141_ Destabilizing: System corrupted (+2). 19141_ Destabilizing: Core damaged (-25). 19142_ Slammed into Wall. 19143_ Destabilizing: Core damaged (-25). 19143_ Destabilizing: Core damaged (-8). 19144_ Slammed into Wall. 19145_ Destabilizing: System corrupted (+2). 19146_ J2T:WVDK=JFI%O